[Event "Prague Open 2024"]
[Site "Prague"]
[Date "2024.01.07"]
[Round "4.15"]
[White "Tolmacevs, Artjoms"]
[Black "Krupa, Miroslav"]
[Result "1-0"]
[ECO "B60"]
[WhiteElo "1928"]
[BlackElo "2119"]
[Annotator "RC"]
[PlyCount "35"]
[EventDate "2024.01.02"]
[EventType "swiss"]
[EventCountry "CZE"]
[SourceTitle "playchess.com"]
[Source "ChessBase"]
[SourceQuality "1"]
[TimeControl "40/5400+30:1800+30"]

1. e4 {[%emt 0:00:01]} c5 {[%emt 0:00:06]} 2. Nf3 {[%emt 0:00:07]} d6 {[%emt 0:00:08]} 3. d4 {[%emt 0:00:07]} cxd4 {[%emt 0:00:06]} 4. Nxd4 {[%emt 0:00:06]} Nf6 {[%emt 0:00:05]} 5. Nc3 {[%emt 0:00:06]} Nc6 {[%emt 0:00:09]} 6. Bg5 {[%emt 0:00:16]} g6 {[%emt 0:00:34]} 7. Bxf6 {[%emt 0:12:34]} exf6 {[%emt 0:00:09]} 8. Bc4 {[%emt 0:08:42]} Bg7 {[%emt 0:00:39]} 9. Ndb5 {[%emt 0:03:43]} O-O {[%emt 0:01:46]} 10. Nxd6 {[%emt 0:02:00]} f5 {[%emt 0:00:49]} 11. O-O {[%emt 0:02:52]} fxe4 {[%emt 0:03:21]} 12. Ncxe4 {[%emt 0:03:03]} Bxb2 {[%emt 0:09:32]} 13. Rb1 {[%emt 0:07:14]} Bg7 {[%emt 0:18:43]} 14. Nxf7 {[%emt 0:10:16]} Rxf7 {[%emt 0:06:34]} 15. Nd6 {[%emt 0:00:05]} Ne5 {[%emt 0:01:04]} 16. Nxf7 {[%emt 0:00:05]} Qxd1 {[%emt 0:05:30]} 17. Nxe5+ {[%emt 0:00:07]} Kf8 {[%emt 0:00:06]} 18. Nxg6+ 1-0

[Event "Prague Open 2024"]
[Site "Prague"]
[Date "2024.01.07"]
[Round "4.16"]
[White "Ye, Fan"]
[Black "Taborsky, Rostislav"]
[Result "1/2-1/2"]
[ECO "B22"]
[WhiteElo "1660"]
[BlackElo "2100"]
[Annotator "RC"]
[PlyCount "83"]
[EventDate "2024.01.02"]
[EventType "swiss"]
[EventCountry "CZE"]
[SourceTitle "playchess.com"]
[Source "ChessBase"]
[SourceQuality "1"]
[TimeControl "40/5400+30:1800+30"]

1. e4 {[%emt 0:00:02]} c5 {[%emt 0:00:06]} 2. c3 {[%emt 0:00:03]} e6 {[%emt 0:01:42]} 3. d4 {[%emt 0:00:12]} d5 {[%emt 0:00:05]} 4. exd5 {[%emt 0:00:05]} exd5 {[%emt 0:00:06]} 5. Nf3 {[%emt 0:00:02]} Nf6 {[%emt 0:00:37]} 6. Bb5+ {[%emt 0:00:41]} Bd7 {[%emt 0:00:34]} 7. Bxd7+ {[%emt 0:02:02]} Nbxd7 {[%emt 0:01:27]} 8. O-O {[%emt 0:00:08]} Be7 {[%emt 0:00:23]} 9. Bg5 {[%emt 0:04:03]} O-O {[%emt 0:02:32]} 10. Nbd2 {[%emt 0:00:15]} Re8 {[%emt 0:04:16]} 11. Re1 {[%emt 0:00:34]} Qb6 {[%emt 0:03:24]} 12. Qb3 {[%emt 0:00:57]} c4 {[%emt 0:05:47]} 13. Qxb6 {[%emt 0:00:45]} axb6 {[%emt 0:00:02]} 14. Ne5 {[%emt 0:05:17]} Bd6 {[%emt 0:01:55]} 15. Nxd7 {[%emt 0:11:55]} Nxd7 {[%emt 0:00:13]} 16. a3 {[%emt 0:00:09]} f6 {[%emt 0:02:21]} 17. Bh4 {[%emt 0:11:46]} h5 {[%emt 0:08:37]} 18. Bg3 {[%emt 0:00:38]} Bxg3 {[%emt 0:25:31]} 19. hxg3 {[%emt 0:00:02]} b5 {[%emt 0:04:29]} 20. Nf1 {[%emt 0:01:01]} Nb6 {[%emt 0:03:46]} 21. Ne3 {[%emt 0:01:10]} g6 {[%emt 0:01:06]} 22. Re2 {[%emt 0:02:04]} Kf7 {[%emt 0:09:20]} 23. Rae1 {[%emt 0:00:51]} f5 {[%emt 0:03:11]} 24. Nd1 {[%emt 0:09:15]} Rxe2 {[%emt 0:01:41]} 25. Rxe2 {[%emt 0:00:01]} Re8 {[%emt 0:00:53]} 26. Kf1 {[%emt 0:04:50]} Rxe2 {[%emt 0:00:47]} 27. Kxe2 {[%emt 0:00:02]} g5 {[%emt 0:01:17]} 28. Ke3 {[%emt 0:19:48]} Ke6 {[%emt 0:00:21]} 29. f3 {[%emt 0:00:32]} Nc8 {[%emt 0:05:36]} 30. f4 {[%emt 0:02:07]} gxf4+ {[%emt 0:09:48]} 31. Kxf4 {[%emt 0:00:25]} Kf6 {[%emt 0:00:10]} 32. Ne3 {[%emt 0:05:26]} Ne7 {[%emt 0:00:07]} 33. Nf1 {[%emt 0:01:05]} Ng6+ {[%emt 0:00:28]} 34. Kf3 {[%emt 0:00:10]} Ke7 {[%emt 0:02:24]} 35. Ne3 {[%emt 0:01:09]} Ke6 {[%emt 0:00:07]} 36. Nf1 {[%emt 0:00:58]} h4 {[%emt 0:01:05]} 37. gxh4 {[%emt 0:01:03]} Nxh4+ {[%emt 0:00:07]} 38. Kg3 {[%emt 0:00:04]} Ng6 {[%emt 0:00:09]} 39. Kf3 {[%emt 0:00:12]} Kf7 {[%emt 0:01:59]} 40. Ne3 {[%emt 0:02:37]} Ne7 {[%emt 0:00:12]} 41. g4 {[%emt 0:34:49]} fxg4+ {[%emt 0:30:54]} 42. Kxg4 {[%emt 0:00:28]} 1/2-1/2

[Event "Prague Open 2024"]
[Site "Prague"]
[Date "2024.01.07"]
[Round "4.17"]
[White "Gomes, Mary Ann"]
[Black "Khandhar, Kaushal"]
[Result "1/2-1/2"]
[ECO "A06"]
[WhiteElo "2332"]
[BlackElo "1840"]
[Annotator "RC"]
[PlyCount "140"]
[EventDate "2024.01.02"]
[EventType "swiss"]
[EventCountry "CZE"]
[SourceTitle "playchess.com"]
[Source "ChessBase"]
[SourceQuality "1"]
[TimeControl "40/5400+30:1800+30"]

1. Nf3 {[%emt 0:00:19]} d5 {[%emt 0:03:56]} 2. g3 {[%emt 0:00:07]} g6 {[%emt 0:00:25]} 3. c4 {[%emt 0:00:19]} dxc4 {[%emt 0:00:30]} 4. Na3 {[%emt 0:00:07]} Bg7 {[%emt 0:00:04]} 5. Nxc4 {[%emt 0:00:08]} Nc6 {[%emt 0:00:01]} 6. Bg2 {[%emt 0:00:31]} e5 {[%emt 0:00:02]} 7. O-O {[%emt 0:00:28]} Nge7 {[%emt 0:00:22]} 8. d3 {[%emt 0:00:20]} O-O {[%emt 0:00:03]} 9. Bd2 {[%emt 0:00:16]} a5 {[%emt 0:00:06]} 10. Rc1 {[%emt 0:00:46]} f6 {[%emt 0:00:25]} 11. Na3 {[%emt 0:05:05]} Be6 {[%emt 0:00:17]} 12. Nb5 {[%emt 0:02:24]} Bxa2 {[%emt 0:16:56]} 13. b3 {[%emt 0:00:43]} a4 {[%emt 0:00:01]} 14. bxa4 {[%emt 0:00:07]} Qd7 {[%emt 0:02:17]} 15. Qc2 {[%emt 0:04:14]} Be6 {[%emt 0:01:46]} 16. Rb1 {[%emt 0:00:40]} g5 {[%emt 0:06:07]} 17. Bxg5 {[%emt 0:15:50]} fxg5 {[%emt 0:02:05]} 18. Nxg5 {[%emt 0:00:07]} Bf5 {[%emt 0:07:58]} 19. Ne4 {[%emt 0:15:11]} b6 {[%emt 0:05:48]} 20. Rfc1 {[%emt 0:00:05]} Rac8 {[%emt 0:00:55]} 21. Ng5 {[%emt 0:02:16]} Nd4 {[%emt 0:01:51]} 22. Nxd4 {[%emt 0:09:37]} exd4 {[%emt 0:00:57]} 23. Qc4+ {[%emt 0:05:12]} Kh8 {[%emt 0:00:20]} 24. Bb7 {[%emt 0:08:08]} Rb8 {[%emt 0:01:58]} 25. Be4 {[%emt 0:04:13]} Bf6 {[%emt 0:16:52]} 26. Bxf5 {[%emt 0:04:53]} Nxf5 {[%emt 0:09:12]} 27. Ne6 {[%emt 0:03:26]} Rfc8 {[%emt 0:04:14]} 28. Qc6 {[%emt 0:04:50]} Qf7 {[%emt 0:08:07]} 29. Qe4 {[%emt 0:09:05]} Re8 {[%emt 0:02:49]} 30. Qxf5 {[%emt 0:00:15]} Qxe6 {[%emt 0:03:45]} 31. Qxe6 {[%emt 0:00:28]} Rxe6 {[%emt 0:00:03]} 32. Rxc7 {[%emt 0:00:08]} Ra8 {[%emt 0:01:32]} 33. Rc4 {[%emt 0:04:02]} Kg7 {[%emt 0:01:23]} 34. Rb2 {[%emt 0:00:19]} Ra6 {[%emt 0:01:22]} 35. Kg2 {[%emt 0:01:09]} h5 {[%emt 0:01:24]} 36. f4 {[%emt 0:00:21]} Kg6 {[%emt 0:01:14]} 37. h3 {[%emt 0:01:15]} Ra5 {[%emt 0:00:59]} 38. Rcb4 {[%emt 0:00:51]} Rc6 {[%emt 0:00:43]} 39. Rxb6 {[%emt 0:00:19]} Rxb6 {[%emt 0:00:04]} 40. Rxb6 {[%emt 0:00:04]} Rxa4 {[%emt 0:00:09]} 41. g4 {[%emt 0:30:10]} hxg4 {[%emt 0:31:05]} 42. hxg4 {[%emt 0:00:07]} Kf7 {[%emt 0:00:00]} 43. g5 {[%emt 0:00:00]} Be7 {[%emt 0:00:00]} 44. Kf3 {[%emt 0:00:00]} Ra7 {[%emt 0:00:00]} 45. Ke4 {[%emt 0:00:00]} Rd7 {[%emt 0:00:00]} 46. Rb5 {[%emt 0:00:00]} Bd8 {[%emt 0:00:00]} 47. Rf5+ {[%emt 0:00:00]} Kg6 {[%emt 0:00:00]} 48. Re5 {[%emt 0:00:00]} Rd6 {[%emt 0:00:00]} 49. Kf3 {[%emt 0:00:00]} Kf7 {[%emt 0:00:00]} 50. Kg4 {[%emt 0:00:00]} Re6 {[%emt 0:00:00]} 51. Re4 {[%emt 0:00:00]} Rd6 {[%emt 0:00:00]} 52. f5 {[%emt 0:00:00]} Be7 {[%emt 0:01:08]} 53. Kf4 {[%emt 0:00:00]} Rd5 {[%emt 0:04:45]} 54. Re6 {[%emt 0:00:00]} Rd7 {[%emt 0:00:52]} 55. Rh6 {[%emt 0:00:00]} Kg8 {[%emt 0:00:31]} 56. Rc6 {[%emt 0:00:00]} Kf7 {[%emt 0:00:21]} 57. Kg4 {[%emt 0:06:50]} Bd8 {[%emt 0:00:09]} 58. Kh5 {[%emt 0:01:13]} Rd5 {[%emt 0:00:37]} 59. f6 {[%emt 0:00:55]} Ba5 {[%emt 0:00:54]} 60. Rc2 {[%emt 0:01:27]} Bd8 {[%emt 0:00:25]} 61. Kh6 {[%emt 0:01:00]} Bxf6 {[%emt 0:00:24]} 62. Rc7+ {[%emt 0:00:30]} Be7 {[%emt 0:00:40]} 63. g6+ {[%emt 0:00:07]} Kf6 {[%emt 0:00:33]} 64. g7 {[%emt 0:00:26]} Bd6 {[%emt 0:00:32]} 65. g8=N+ {[%emt 0:01:00]} Ke6 {[%emt 0:00:09]} 66. Ra7 {[%emt 0:00:32]} Bf4+ {[%emt 0:00:28]} 67. Kg6 {[%emt 0:00:26]} Rg5+ {[%emt 0:00:15]} 68. Kh7 {[%emt 0:00:06]} Rh5+ {[%emt 0:00:21]} 69. Kg6 {[%emt 0:00:06]} Rg5+ {[%emt 0:00:18]} 70. Kh7 {[%emt 0:00:06]} Rh5+ {[%emt 0:00:20]} 1/2-1/2

[Event "Prague Open 2024"]
[Site "Prague"]
[Date "2024.01.07"]
[Round "4.18"]
[White "Shagbazyan, Taron"]
[Black "Diachek, Andriy"]
[Result "1/2-1/2"]
[ECO "E29"]
[WhiteElo "2403"]
[BlackElo "1955"]
[Annotator "RC"]
[PlyCount "71"]
[EventDate "2024.01.02"]
[EventType "swiss"]
[EventCountry "CZE"]
[SourceTitle "playchess.com"]
[Source "ChessBase"]
[SourceQuality "1"]
[TimeControl "40/5400+30:1800+30"]

1. d4 {[%emt 0:00:01]} Nf6 {[%emt 0:00:06]} 2. c4 {[%emt 0:00:05]} e6 {[%emt 0:00:04]} 3. Nc3 {[%emt 0:00:04]} Bb4 {[%emt 0:00:05]} 4. e3 {[%emt 0:00:11]} O-O {[%emt 0:00:10]} 5. a3 {[%emt 0:00:24]} Bxc3+ {[%emt 0:00:06]} 6. bxc3 {[%emt 0:00:06]} c5 {[%emt 0:00:51]} 7. Bd3 {[%emt 0:00:56]} Nc6 {[%emt 0:02:19]} 8. Ne2 {[%emt 0:00:21]} d6 {[%emt 0:01:53]} 9. e4 {[%emt 0:02:41]} e5 {[%emt 0:01:02]} 10. d5 {[%emt 0:03:59]} Ne7 {[%emt 0:00:16]} 11. O-O {[%emt 0:04:20]} Ng6 {[%emt 0:04:49]} 12. Bd2 {[%emt 0:21:08]} Nh5 {[%emt 0:10:08]} 13. f3 {[%emt 0:09:58]} Nhf4 {[%emt 0:10:07]} 14. Bxf4 {[%emt 0:05:46]} exf4 {[%emt 0:06:57]} 15. Qd2 {[%emt 0:00:45]} Qg5 {[%emt 0:07:24]} 16. g3 {[%emt 0:08:51]} f5 {[%emt 0:15:36]} 17. Nxf4 {[%emt 0:13:49]} fxe4 {[%emt 0:02:57]} 18. fxe4 {[%emt 0:00:13]} Bh3 {[%emt 0:03:29]} 19. Rf2 {[%emt 0:00:09]} Nxf4 {[%emt 0:05:12]} 20. Rxf4 {[%emt 0:00:04]} Rf6 {[%emt 0:05:35]} 21. Rd1 {[%emt 0:09:01]} Raf8 {[%emt 0:01:13]} 22. Rxf6 {[%emt 0:05:31]} Qxf6 {[%emt 0:00:19]} 23. Re1 {[%emt 0:03:01]} Qe5 {[%emt 0:01:19]} 24. Re3 {[%emt 0:04:14]} h5 {[%emt 0:06:20]} 25. Be2 {[%emt 0:02:23]} h4 {[%emt 0:02:44]} 26. Qd3 {[%emt 0:00:24]} Rf6 {[%emt 0:03:36]} 27. Rf3 {[%emt 0:00:27]} Rg6 {[%emt 0:00:20]} 28. Kf2 {[%emt 0:01:07]} Bg4 {[%emt 0:04:26]} 29. Rf4 {[%emt 0:00:13]} hxg3+ {[%emt 0:00:52]} 30. hxg3 {[%emt 0:00:03]} Bxe2 {[%emt 0:00:06]} 31. Kxe2 {[%emt 0:00:02]} Qh5+ {[%emt 0:00:13]} 32. Qf3 {[%emt 0:00:05]} Qh2+ {[%emt 0:01:33]} 33. Qf2 {[%emt 0:00:05]} Qh1 {[%emt 0:01:42]} 34. Qf3 {[%emt 0:03:52]} Qh2+ {[%emt 0:00:19]} 35. Qf2 {[%emt 0:00:35]} Qh1 {[%emt 0:00:04]} 36. Qf3 {[%emt 0:02:55]} 1/2-1/2

[Event "Prague Open 2024"]
[Site "Prague"]
[Date "2024.01.07"]
[Round "4.19"]
[White "Bech, Havard Eriksen"]
[Black "Jun, Rudolf"]
[Result "1-0"]
[ECO "E10"]
[WhiteElo "1955"]
[BlackElo "2283"]
[Annotator "RC"]
[PlyCount "103"]
[EventDate "2024.01.02"]
[EventType "swiss"]
[EventCountry "CZE"]
[SourceTitle "playchess.com"]
[Source "ChessBase"]
[SourceQuality "1"]
[TimeControl "40/5400+30:1800+30"]

1. d4 {[%emt 0:00:06]} Nf6 {[%emt 0:00:22]} 2. c4 {[%emt 0:00:06]} e6 {[%emt 0:00:33]} 3. Nf3 {[%emt 0:00:07]} c5 {[%emt 0:00:17]} 4. d5 {[%emt 0:00:14]} exd5 {[%emt 0:00:23]} 5. cxd5 {[%emt 0:00:09]} d6 {[%emt 0:00:55]} 6. Nc3 {[%emt 0:00:08]} a6 {[%emt 0:00:11]} 7. a4 {[%emt 0:00:11]} g6 {[%emt 0:00:10]} 8. Nd2 {[%emt 0:00:11]} Nbd7 {[%emt 0:01:25]} 9. e4 {[%emt 0:02:20]} Bg7 {[%emt 0:00:44]} 10. Be2 {[%emt 0:00:20]} O-O {[%emt 0:01:01]} 11. O-O {[%emt 0:00:24]} Re8 {[%emt 0:00:57]} 12. Qc2 {[%emt 0:01:26]} b6 {[%emt 0:04:26]} 13. Nc4 {[%emt 0:08:39]} Ne5 {[%emt 0:00:33]} 14. Ne3 {[%emt 0:02:05]} Nfg4 {[%emt 0:05:04]} 15. Nxg4 {[%emt 0:12:38]} Nxg4 {[%emt 0:07:24]} 16. h3 {[%emt 0:04:37]} Ne5 {[%emt 0:04:26]} 17. f4 {[%emt 0:06:46]} Nd7 {[%emt 0:00:02]} 18. Kh2 {[%emt 0:01:49]} Qe7 {[%emt 0:02:33]} 19. Bf3 {[%emt 0:02:05]} Rb8 {[%emt 0:02:56]} 20. Rb1 {[%emt 0:00:59]} b5 {[%emt 0:02:14]} 21. b4 {[%emt 0:03:19]} cxb4 {[%emt 0:08:05]} 22. Rxb4 {[%emt 0:00:50]} Nb6 {[%emt 0:03:12]} 23. axb5 {[%emt 0:05:17]} Qc7 {[%emt 0:02:42]} 24. Bd2 {[%emt 0:06:56]} Nc4 {[%emt 0:03:05]} 25. Rc1 {[%emt 0:07:03]} Nxd2 {[%emt 0:07:53]} 26. Qxd2 {[%emt 0:01:38]} Qa5 {[%emt 0:05:49]} 27. Ra4 {[%emt 0:05:46]} Bxc3 {[%emt 0:01:45]} 28. Qa2 {[%emt 0:00:09]} Qd8 {[%emt 0:01:52]} 29. Rxc3 {[%emt 0:01:21]} axb5 {[%emt 0:00:10]} 30. Ra7 {[%emt 0:00:34]} Qf6 {[%emt 0:01:50]} 31. Qd2 {[%emt 0:00:30]} b4 {[%emt 0:06:26]} 32. Rb3 {[%emt 0:01:16]} h5 {[%emt 0:06:28]} 33. Ra4 {[%emt 0:04:28]} h4 {[%emt 0:00:29]} 34. Raxb4 {[%emt 0:00:47]} Rxb4 {[%emt 0:00:01]} 35. Rxb4 {[%emt 0:00:13]} g5 {[%emt 0:00:44]} 36. fxg5 {[%emt 0:05:50]} Qe5+ {[%emt 0:00:01]} 37. Kg1 {[%emt 0:00:57]} Ba6 {[%emt 0:02:21]} 38. Rb6 {[%emt 0:03:28]} Ra8 {[%emt 0:01:29]} 39. Qb2 {[%emt 0:00:25]} Qf4 {[%emt 0:02:37]} 40. Rb8+ {[%emt 0:00:11]} Rxb8 {[%emt 0:00:10]} 41. Qxb8+ {[%emt 0:30:02]} Kh7 {[%emt 0:30:28]} 42. Qa7 {[%emt 0:12:05]} Qc1+ {[%emt 0:02:11]} 43. Kh2 {[%emt 0:00:08]} Qf4+ {[%emt 0:00:08]} 44. Kh1 {[%emt 0:00:10]} Qc1+ {[%emt 0:00:13]} 45. Qg1 {[%emt 0:00:23]} Qxg5 {[%emt 0:00:28]} 46. Qb1 {[%emt 0:00:25]} Qe5 {[%emt 0:01:28]} 47. Qe1 {[%emt 0:00:00]} Qf6 {[%emt 0:00:00]} 48. Bg4 {[%emt 0:00:00]} Bd3 {[%emt 0:00:00]} 49. Bf5+ {[%emt 0:00:00]} Kg7 {[%emt 0:00:00]} 50. g3 {[%emt 0:00:00]} Qe5 {[%emt 0:00:00]} 51. gxh4 {[%emt 0:00:00]} Qf4 {[%emt 0:00:00]} 52. Qc3+ {[%emt 0:00:00]} 1-0

[Event "Prague Open 2024"]
[Site "Prague"]
[Date "2024.01.07"]
[Round "4.20"]
[White "Vojta, Jakub"]
[Black "Cziko, Eduard-Carol"]
[Result "1-0"]
[ECO "A20"]
[WhiteElo "2261"]
[BlackElo "1946"]
[Annotator "RC"]
[PlyCount "93"]
[EventDate "2024.01.02"]
[EventType "swiss"]
[EventCountry "CZE"]
[SourceTitle "playchess.com"]
[Source "ChessBase"]
[SourceQuality "1"]
[TimeControl "40/5400+30:1800+30"]

1. c4 {[%emt 0:00:05]} e5 {[%emt 0:00:24]} 2. g3 {[%emt 0:00:06]} Nf6 {[%emt 0:00:09]} 3. Bg2 {[%emt 0:00:05]} c6 {[%emt 0:00:51]} 4. Nf3 {[%emt 0:00:37]} e4 {[%emt 0:00:47]} 5. Nd4 {[%emt 0:00:07]} d5 {[%emt 0:01:07]} 6. cxd5 {[%emt 0:00:06]} cxd5 {[%emt 0:00:04]} 7. Nc3 {[%emt 0:00:36]} Nc6 {[%emt 0:00:49]} 8. Nxc6 {[%emt 0:00:15]} bxc6 {[%emt 0:00:08]} 9. d3 {[%emt 0:00:19]} Bb4 {[%emt 0:06:26]} 10. O-O {[%emt 0:00:25]} exd3 {[%emt 0:11:16]} 11. Qxd3 {[%emt 0:00:05]} O-O {[%emt 0:04:05]} 12. a3 {[%emt 0:04:23]} Ba5 {[%emt 0:05:35]} 13. b4 {[%emt 0:06:45]} Bc7 {[%emt 0:12:24]} 14. a4 {[%emt 0:04:32]} Rb8 {[%emt 0:05:52]} 15. Ba3 {[%emt 0:07:18]} Bd6 {[%emt 0:01:58]} 16. b5 {[%emt 0:00:15]} Bxa3 {[%emt 0:00:27]} 17. Rxa3 {[%emt 0:00:06]} Bd7 {[%emt 0:04:07]} 18. Rb1 {[%emt 0:10:13]} Qe7 {[%emt 0:04:58]} 19. Rab3 {[%emt 0:02:07]} Qc5 {[%emt 0:00:42]} 20. bxc6 {[%emt 0:03:35]} Rxb3 {[%emt 0:00:19]} 21. Rxb3 {[%emt 0:00:02]} Bxc6 {[%emt 0:00:11]} 22. e3 {[%emt 0:01:28]} Re8 {[%emt 0:03:14]} 23. Qd4 {[%emt 0:01:36]} Qa5 {[%emt 0:02:14]} 24. Qb4 {[%emt 0:02:04]} Qc7 {[%emt 0:02:00]} 25. a5 {[%emt 0:02:10]} h6 {[%emt 0:03:11]} 26. a6 {[%emt 0:00:51]} Ne4 {[%emt 0:05:01]} 27. Qd4 {[%emt 0:03:30]} Rd8 {[%emt 0:05:07]} 28. Rb1 {[%emt 0:03:30]} Rd6 {[%emt 0:03:44]} 29. h3 {[%emt 0:06:31]} Rf6 {[%emt 0:03:39]} 30. Qb4 {[%emt 0:17:13]} Nxf2 {[%emt 0:01:49]} 31. Qb8+ {[%emt 0:00:29]} Qxb8 {[%emt 0:00:03]} 32. Rxb8+ {[%emt 0:00:06]} Kh7 {[%emt 0:00:02]} 33. Rc8 {[%emt 0:01:40]} Nd3 {[%emt 0:03:18]} 34. Rc7 {[%emt 0:00:32]} Nb4 {[%emt 0:03:00]} 35. Rxa7 {[%emt 0:00:51]} d4 {[%emt 0:00:15]} 36. exd4 {[%emt 0:00:25]} Bxg2 {[%emt 0:00:59]} 37. Kxg2 {[%emt 0:00:03]} Nxa6 {[%emt 0:00:21]} 38. d5 {[%emt 0:00:26]} Nc5 {[%emt 0:01:25]} 39. Rc7 {[%emt 0:00:23]} Nd3 {[%emt 0:00:28]} 40. Ne4 {[%emt 0:00:11]} Ne1+ {[%emt 0:04:02]} 41. Kg1 {[%emt 0:30:21]} Rf5 {[%emt 0:31:08]} 42. d6 {[%emt 0:00:18]} Nf3+ {[%emt 0:02:18]} 43. Kg2 {[%emt 0:01:34]} Nd4 {[%emt 0:00:54]} 44. g4 {[%emt 0:06:10]} Re5 {[%emt 0:00:00]} 45. Nc3 {[%emt 0:00:00]} Kg6 {[%emt 0:00:00]} 46. d7 {[%emt 0:00:00]} Ne6 {[%emt 0:00:00]} 47. Rc6 {[%emt 0:00:00]} 1-0

[Event "Prague Open 2024"]
[Site "Prague"]
[Date "2024.01.08"]
[Round "5.1"]
[White "Mis, Mieszko"]
[Black "Agdestein, Simen"]
[Result "1-0"]
[ECO "B23"]
[WhiteElo "2301"]
[BlackElo "2568"]
[Annotator "TA"]
[PlyCount "85"]
[EventDate "2024.01.02"]
[EventType "swiss"]
[EventCountry "CZE"]
[SourceTitle "playchess.com"]
[Source "ChessBase"]
[SourceQuality "1"]
[TimeControl "40/5400+30:1800+30"]

{[%evp 9,85,0,6,-5,45,46,57,49,62,62,70,58,66,73,72,38,52,14,20,0,0,0,51,41,42,25,52,45,77,70,61,65,105,-20,-18,-24,-20,-66,-60,-75,-82,-65,-76,-77,-64,-64,0,-1,-5,-13,0,0,0,0,0,0,0,-11,-30,-91,0,0,43,51,222,225,538,548,543,536,29985,29986,29994,29995,29995,29996,29996,29994]} 1. e4 {[%emt 0:00:02]} c5 {[%emt 0:01:28]} 2. Nc3 {[%emt 0:00:09]} e6 {[%emt 0:01:18]} 3. d4 {[%emt 0:00:34]} cxd4 {[%emt 0:00:24]} 4. Qxd4 {[%emt 0:00:04]} Nc6 {[%emt 0:03:03]} 5. Qd3 {[%emt 0:00:06]} a6 {[%emt 0:08:28]} 6. Bf4 {[%emt 0:00:17] B23: Closed Sicilian: Lines without g3.} Nge7 {[%emt 0:06:41] [#]} (6... b5 $11) 7. Bd6 $146 {[%emt 0:05:02]} ({Predecessor:} 7. O-O-O Ng6 8. Bd6 Qg5+ 9. Kb1 Bxd6 10. Qxd6 Qe5 11. Qd2 b5 12. Nf3 Qc5 13. h4 {1-0 Tari,A (2672)-Jakubowski,K (2459) Chess.com Rapid Wk21 Swiss 2022 (2)}) 7... Ng6 {[%emt 0:07:42]} 8. Bxf8 {[%emt 0:03:02] White is slightly better.} Rxf8 {[%emt 0:00:44]} 9. O-O-O {[%emt 0:04:47]} b5 {[%emt 0:02:03]} 10. h4 {[%emt 0:12:43][%cal Bh2h4,Bh4h5][%mdl 32]} Qc7 {[%emt 0:09:30]} 11. h5 {[%emt 0:03:56]} Nge7 {[%emt 0:04:55]} 12. Nf3 {[%emt 0:11:08]} (12. h6 $5 {[%cal Rh6g7]} g5 13. Qd2 $11) 12... h6 {[%emt 0:09:56]} 13. Rh4 {[%emt 0:00:47][%cal Oc3d5]} f6 $1 {[%emt 0:03:01]} 14. Qe3 {[%emt 0:09:47]} Qa7 {[%emt 0:03:10]} 15. Qd2 {[%emt 0:09:12]} Rf7 {[%emt 0:02:23]} ({Black should play} 15... Kf7 $11) 16. Kb1 {[%emt 0:04:00]} Kf8 {[%emt 0:01:18]} 17. Rf4 {[%emt 0:07:58]} Qb8 {[%emt 0:07:36]} 18. Rg4 {[%emt 0:01:22]} Ra7 {[%emt 0:07:40]} 19. Nh4 {[%emt 0:01:07] White is much more active. The black rooks are badly placed.} b4 {[%emt 0:01:57]} 20. Na4 {[%emt 0:01:19]} d5 {[%emt 0:00:50]} 21. Ng6+ {[%emt 0:00:53]} (21. exd5 $16 Rd7 22. Bc4 (22. d6 Nd5 $14) 22... exd5 23. Bb3) 21... Nxg6 $11 {[%emt 0:02:15]} 22. hxg6 {[%emt 0:00:17]} Rfd7 {[%emt 0:00:37]} 23. Nc5 {[%emt 0:02:25]} (23. exd5 $1 $11 {feels stronger.} Rxd5 24. Bd3) 23... Rd8 $15 {[%emt 0:00:12] And now ...dxe4 would win.} 24. Qe2 {[%emt 0:05:30]} Re7 {[%emt 0:03:29]} 25. Rg3 {[%emt 0:03:20]} Qb6 {[%emt 0:01:46]} 26. Na4 {[%emt 0:01:59]} (26. Nxa6 $2 Ra7 27. Nxb4 (27. exd5 $2 Bxa6 28. Qe3 Qa5 $19) 27... Qxb4 28. exd5 exd5 $19) 26... Qa5 {[%emt 0:01:05]} 27. b3 {[%emt 0:00:03]} dxe4 {[%emt 0:02:33]} (27... Qc7 $15) 28. Rxd8+ $11 {[%emt 0:01:00]} Qxd8 {[%emt 0:00:39]} 29. Qxe4 {[%emt 0:00:43]} Nd4 {[%emt 0:00:44]} 30. Qa8 {[%emt 0:02:11]} Rc7 {[%emt 0:01:03]} 31. Bc4 {[%emt 0:01:07] aiming for Rd3.} Ke7 {[%emt 0:01:27]} 32. Rd3 {[%emt 0:01:49]} e5 {[%emt 0:00:28]} 33. Nb6 {[%emt 0:00:28]} (33. Bxa6 $2 {is the wrong capture.} Nxc2 34. a3 (34. Rxd8 {gets mated.} Na3+ 35. Kb2 Rc2+ 36. Ka1 Rc1+ 37. Kb2 Rb1#) 34... Nxa3+ 35. Ka2 Rc2+ 36. Ka1 Qa5 $19) 33... Bb7 {[%emt 0:00:28]} 34. Qa7 {[%emt 0:02:29]} (34. Qxd8+ $11 Kxd8 35. f3) 34... Kf8 {[%emt 0:02:41]} ({Reject} 34... Be4 $6 35. Qxa6 Rb7 36. Na4 $11) ({Better is} 34... Bxg2 $17 35. Qxa6 Rb7) 35. Rd2 {[%emt 0:01:26]} Re7 {[%emt 0:02:35]} 36. f4 $40 {[%emt 0:01:54][%mdl 128] [#] Threatens to win with fxe5. White attacks.} Be4 $2 {[%emt 0:01:32] This move loses the game for Black.} (36... exf4 $2 37. Na4 $18) (36... Qd6 $14) 37. Qxa6 $18 {[%emt 0:00:25] Hoping for fxe5.} Qd6 {[%emt 0:00:43]} (37... Bxc2+ {is a better chance.} 38. Rxc2 Nxc2 39. Kxc2 Qd4) 38. fxe5 {[%emt 0:01:00]} Rxe5 {[%emt 0:00:10]} 39. Qc8+ {[%emt 0:01:53]} Ke7 {[%emt 0:00:10] [#]} 40. Rxd4 $1 {[%emt 0:01:11][%mdl 576] Deflection. White mates.} Qxd4 {[%emt 0:01:06]} (40... Bxc2+ 41. Kxc2) 41. Qc7+ {[%emt 0:30:15][%mdl 64] Skewer} Ke8 {[%emt 0:30:05]} 42. Bf7+ {[%emt 0:00:08]} Kf8 {[%emt 0:00:02]} 43. Nd7+ {[%emt 0:00:16] A superb game by Mis.   Weighted Error Value: White=0.12 (very precise) /Black=0.49} 1-0

[Event "Prague Open 2024"]
[Site "Prague"]
[Date "2024.01.08"]
[Round "5.2"]
[White "Morchiashvili, Bachana"]
[Black "Sowinski, Pawel"]
[Result "0-1"]
[ECO "E15"]
[WhiteElo "2295"]
[BlackElo "2357"]
[Annotator "RC"]
[PlyCount "96"]
[EventDate "2024.01.02"]
[EventType "swiss"]
[EventCountry "CZE"]
[SourceTitle "playchess.com"]
[Source "ChessBase"]
[SourceQuality "1"]
[TimeControl "40/5400+30:1800+30"]

1. d4 Nf6 2. Nf3 e6 3. c4 b6 4. g3 Ba6 5. Qc2 c5 6. Bg2 Nc6 7. dxc5 Bxc5 8. O-O O-O 9. a3 d5 10. cxd5 exd5 11. Nc3 d4 12. Ne4 d3 13. Nxf6+ Qxf6 14. exd3 Rac8 15. Bg5 Qf5 16. Qd2 h6 17. Be3 Bxe3 18. Qxe3 Rfe8 19. Qd2 Red8 20. Rfc1 Rxd3 21. Qe1 Qd7 22. Rxc6 Rxc6 23. Ne5 Re6 24. Nxd7 Rxe1+ 25. Rxe1 Rxd7 26. Re8+ Kh7 27. Be4+ g6 28. h4 Kg7 29. Bf3 Bc4 30. Ra8 Kf6 31. Kg2 h5 32. b4 Ke5 33. Rc8 Kd4 34. Bc6 Re7 35. Bf3 b5 36. Bc6 Re6 37. Bb7 Rb6 38. Rd8+ Kc3 39. Bd5 Kb3 40. Rd7 Bxd5+ 41. Rxd5 Kxa3 42. Rd4 Rc6 43. Kf3 Rc4 44. Rd7 a6 45. Rd6 Rxb4 46. Rxa6+ Ra4 47. Rf6 b4 48. Rxf7 b3 0-1